fUST/lending_fUST_20251231
["ID","MTS","AMOUNT","RATE_DAILY","PERIOD"]
[400197856,1767191453966,-1000.0,0.0001988,5]
[400197857,1767191453975,-20000.0,0.000199,3]
[400197858,1767191453986,-1640.515759,0.000199,5]
[400197859,1767191453995,-1000.0,0.000199,5]
[400197860,1767191454005,-747.7271942,0.00019901,2]
[400197861,1767191454014,-1000.0,0.0001992,5]
[400197862,1767191454023,-1000.0,0.0001992,5]
[400197863,1767191454033,-1000.0,0.0001994,5]
[400197864,1767191454042,-1000.0,0.0001994,5]
[400197865,1767191454052,-1000.0,0.0001996,5]
[400197866,1767191454061,-1000.0,0.0001996,5]
[400197867,1767191454070,-1000.0,0.0001998,5]
[400197868,1767191454079,-1000.0,0.0001998,5]
[400197869,1767191454089,-1003.0,0.0002,2]
[400197870,1767191454098,-418.94279744,0.0002,2]
[400197871,1767191454107,-394.73148624,0.0002,2]
[400197872,1767191454117,-2000.0,0.0002,14]
[400197873,1767191454126,-2000.0,0.0002,14]
[400197874,1767191454136,-2020.94,0.0002,14]
[400197875,1767191454146,-178138.32811005,0.0002,2]
[400197876,1767191454619,-10086.27503392,0.0002,2]
[400197877,1767191454633,-5051.50204023,0.0002,2]
[400197878,1767191454645,-1504.81184477,0.0002,2]
[400197879,1767191454658,-87784.161099,0.0002,2]
[400197880,1767191454781,-250.0,0.0001115,2]
[400197881,1767191454791,-346.0,0.00011262,2]
[400197882,1767191454800,-411.557096,0.0002,2]
[400197883,1767191454986,-59734.36477603,0.0002,2]
[400197884,1767191454996,-299.999999,0.0002,2]
[400197885,1767191455006,-179.55824252,0.0002,2]
[400197886,1767191455015,-1000.0,0.0002,5]
[400197887,1767191455024,-1000.0,0.0002,5]
[400197888,1767191455034,-151.50000152,0.0002,2]
[400197889,1767191455043,-250.0,0.0002,10]
[400197890,1767191455053,-150.040669,0.0002,2]
[400197891,1767191455062,-2000.0,0.0002,7]
[400197892,1767191455071,-454.36370906,0.00020034,4]
[400197893,1767191455081,-6750.64958637,0.00020072,2]
[400197894,1767191455090,-500.0,0.00020088,7]
[400197895,1767191455100,-251.551966,0.000201,10]
[400197896,1767191455109,-184.1677213,0.0002011,2]
[400197897,1767191455119,-1154.268273,0.00020187,2]
[400197898,1767191455128,-2058.46,0.00020198,2]
[400197899,1767191455138,-1406.94,0.000202,2]
[400197900,1767191455147,-11756.39789331,0.000202,2]
[400197901,1767191455158,-1981.85924301,0.000202,2]
[400197902,1767191455170,-519.31286368,0.000202,2]
[400197903,1767191455179,-186.0,0.000202,2]
[400197904,1767191455188,-87.22713632,0.00020223,4]
[400197905,1767191455204,-346.38830132,0.00020223,4]
[400197906,1767191455216,-20.74827142,0.00020223,4]
[400197907,1767191455225,-170.7208142,0.00020274,2]
[400197908,1767191455235,-165.71,0.000203,2]
[400197909,1767191455244,-160.59,0.000203,2]
[400197910,1767191455254,-390.6952985,0.00020366,2]
[400197911,1767191455263,-454.36370906,0.00020412,4]
[400197912,1767191455272,-2406.304827,0.00020548,2]
[400197913,1767191455281,-454.3637089,0.00020601,4]
[400197914,1767191455292,-4834.65801308,0.00020661,2]
[400197915,1767191455301,-2156.0,0.00020781,2]
[400197916,1767191455310,-1364.0,0.00020781,2]
[400197917,1767191455320,-627.0,0.00020781,2]
[400197918,1767191455329,-150.0,0.00020781,2]
[400197919,1767191455339,-416.0,0.00020781,2]
[400197920,1767191455349,-416.0,0.00020781,2]
[400197921,1767191455358,-326.86925746,0.00020815,14]
[400197922,1767191455368,-5852.6684995,0.000209,5]
[400197936,1767191507876,5107.21084423,0.00010954,2]
[400197938,1767191507906,10000.01,0.00010954,2]
[400197939,1767191507936,10000.01,0.00010954,2]
[400197941,1767191507967,10000.01,0.00010954,2]
[400197943,1767191507999,10000.01,0.00010954,2]
[400197945,1767191508029,10000.01,0.00010954,2]
[400197947,1767191508059,10000.01,0.00010954,2]
[400197948,1767191508089,10000.01,0.00010954,2]
[400197949,1767191508121,10000.01,0.00010954,2]
[400197950,1767191508153,10000.01,0.00010954,2]
[400197952,1767191512173,-237.08053768,0.00010954,2]
[400197953,1767191513598,-583.0,0.00010954,2]
[400197954,1767191518116,-207.30691018,0.00010954,2]
[400197955,1767191521379,-190.95421658,0.00010954,2]
[400197956,1767191526831,-190.46,0.00010954,2]
[400197957,1767191528886,-177.02289171,0.00010954,2]
[400197964,1767191533324,2691.20112673,0.00010954,2]
[400197966,1767191535067,-226.5,0.00010954,2]
[400197968,1767191537074,-503.83498449,0.00010954,2]
[400197971,1767191542551,-507.79093378,0.00010954,2]
[400197973,1767191544576,-169.33706153,0.00010954,2]
[400197977,1767191551478,-1218.74160507,0.00010954,2]
[400197980,1767191553597,-182.82210834,0.00010954,2]
[400197983,1767191556808,1388.0786666,0.00010954,2]
[400198006,1767191560503,-266.87925266,0.00010954,2]
[400198038,1767191566603,226.49,0.0001,2]
[400198039,1767191567054,-411.36558161,0.00010954,2]
[400198041,1767191569030,-200.52,0.00010954,2]
[400198045,1767191574859,629.57812408,0.00010953,2]
[400198046,1767191574898,343.16472724,0.00010953,2]
[400198047,1767191574941,629.57812408,0.00010953,2]
[400198048,1767191574984,629.57812408,0.00010953,2]
[400198049,1767191575025,629.57812408,0.00010953,2]
[400198050,1767191575071,629.57812408,0.00010953,2]
[400198051,1767191575104,629.57812408,0.00010953,2]
[400198052,1767191575150,629.57812408,0.00010953,2]
[400198053,1767191575188,629.57812408,0.00010953,2]
[400198054,1767191575236,314.45048679,0.00010953,2]
[400198055,1767191575263,315.12763729,0.00010953,2]
[400198056,1767191575302,629.57812408,0.00010953,2]
[400198057,1767191575863,629.57812408,0.00010953,2]
[400198058,1767191576118,629.57812408,0.00010953,2]
[400198059,1767191576266,629.57812408,0.00010953,2]
[400198060,1767191576340,629.57812408,0.00010953,2]
[400198061,1767191576416,629.57812408,0.00010953,2]
[400198062,1767191576800,629.57812408,0.00010953,2]
[400198063,1767191576843,629.57812408,0.00010953,2]
[400198064,1767191576889,629.57812408,0.00010953,2]
[400198067,1767191580397,997.9229201,0.00010954,2]
[400198088,1767191621701,500.0,0.00010953,2]
[400198089,1767191621748,500.0,0.00010953,2]
[400198090,1767191621809,411.74050957,0.00010953,2]
[400198102,1767191642628,300.0,0.00010953,2]
[400198120,1767191701289,300.0,0.00010953,2]
[400198123,1767191702858,300.0,0.00010953,2]
[400198124,1767191702896,300.0,0.00010953,2]
[400198126,1767191707218,235.0,0.00010953,2]
[400198138,1767191733799,174.01581632,0.00010311,2]
[400198139,1767191733828,8183.41940878,0.00010311,2]
[400198155,1767191762717,300.0,0.00010953,2]
[400198244,1767191806147,527.9646212,0.00010953,2]
[400198245,1767191806215,500.0,0.00010953,2]
[400198278,1767191822331,300.0,0.00010953,2]
[400198284,1767191832314,188.62597002,0.00010953,2]
[400198285,1767191832345,311.37402998,0.00010953,2]
[400198286,1767191832381,574.37089769,0.00010953,2]
[400198289,1767191836235,240.21530906,0.00010953,2]
[400198298,1767191846348,425.85465354,0.000109,2]
[400198308,1767191882362,300.0,0.00010953,2]
[400198309,1767191909943,500.0,0.00010953,2]
[400198310,1767191909990,217.07137838,0.00010953,2]
[400198312,1767191917190,516.25406175,0.00010953,2]
[400198313,1767191917233,516.25406175,0.00010953,2]
[400198314,1767191917279,516.25406175,0.00010953,2]
[400198315,1767191917321,516.25406175,0.00010953,2]
[400198316,1767191917359,516.25406175,0.00010953,2]
[400198317,1767191917397,516.25406175,0.00010953,2]
[400198318,1767191917435,516.25406175,0.00010953,2]
[400198319,1767191917469,516.25406175,0.00010953,2]
[400198320,1767191917542,516.25406175,0.00010953,2]
[400198321,1767191917638,516.25406175,0.00010953,2]
[400198322,1767191917674,516.25406175,0.00010953,2]
[400198323,1767191917725,516.25406175,0.00010953,2]
[400198324,1767191917893,516.25406175,0.00010953,2]
[400198325,1767191917931,516.25406175,0.00010953,2]
[400198326,1767191917962,516.25406175,0.00010953,2]
[400198327,1767191917996,516.25406175,0.00010953,2]
[400198328,1767191918053,56.80367102,0.00010953,2]
[400198329,1767191918081,459.45039073,0.00010953,2]
[400198330,1767191918120,516.25406175,0.00010953,2]
[400198331,1767191918210,516.25406175,0.00010953,2]
[400198333,1767191918534,516.25406175,0.00010953,2]
[400198334,1767191918814,516.25406175,0.00010953,2]
[400198335,1767191918922,516.25406175,0.00010953,2]
[400198347,1767191934980,500.0,0.00010953,2]
[400198348,1767191935021,500.0,0.00010953,2]
[400198349,1767191935058,500.0,0.00010953,2]
[400198350,1767191935094,500.0,0.00010953,2]
[400198351,1767191935267,500.0,0.00010953,2]
[400198352,1767191935340,420.66764835,0.00010953,2]
[400198353,1767191935376,500.0,0.00010953,2]
[400198354,1767191935625,2232.213552,0.00010954,2]
[400198356,1767191935660,500.0,0.00010953,2]
[400198357,1767191935844,500.0,0.00010953,2]
[400198362,1767191943004,195.0,0.00010953,2]
[400198364,1767191943700,111.40810017,0.00010953,2]
[400198365,1767191943727,188.59189983,0.00010953,2]
[400198366,1767191944472,5000.0,0.00010954,2]
[400198367,1767191945820,500.0,0.00010953,2]
[400198369,1767191950191,500.0,0.00010953,2]
[400198370,1767191950453,500.0,0.00010953,2]
[400198371,1767191952766,450.0,0.00010953,2]
[400198395,1767191966923,500.0,0.00010953,2]
[400198396,1767191966955,500.0,0.00010953,2]
[400198397,1767191966989,500.0,0.00010953,2]
[400198398,1767191967036,500.0,0.00010953,2]
[400198399,1767191967622,861.41810017,0.00010954,2]
[400198400,1767191967652,3799.19495032,0.00010954,2]
[400198403,1767191973087,504.471551,0.00010953,2]
[400198409,1767191985416,-9838.94058831,0.00010954,2]
[400198410,1767191985554,-10000.01,0.00010954,2]
[400198411,1767191985683,-10000.01,0.00010954,2]
[400198412,1767191985900,-10000.01,0.00010954,2]
[400198413,1767191986020,-10000.01,0.00010954,2]
[400198414,1767191988158,-10000.01,0.00010954,2]
[400198415,1767191988294,-10000.01,0.00010954,2]
[400198416,1767191988429,-10000.01,0.00010954,2]
[400198422,1767192031980,208574.49460606,0.00028767,120]
[400198426,1767192039468,-5000.0,0.00010842,2]
[400198427,1767192039520,-0.01,0.00010952,2]
[400198428,1767192039633,-299.99,0.00010952,2]
[400198429,1767192039667,-300.0,0.00010952,2]
[400198430,1767192039703,-300.0,0.00010952,2]
[400198431,1767192039735,-300.0,0.00010952,2]
[400198432,1767192039767,-1200.0,0.00010952,2]
[400198433,1767192039800,-335.14702951,0.00010952,2]
[400198435,1767192054532,-500.0,0.00010953,2]
[400198436,1767192054568,-294.09370762,0.00010953,2]
[400198437,1767192054602,-574.0,0.00010953,2]
[400198438,1767192054635,-151.0,0.00010954,2]
[400198439,1767192054665,-151.0,0.00010954,2]
[400198440,1767192054697,-151.0,0.00010954,2]
[400198441,1767192054731,-151.0,0.00010954,2]
[400198442,1767192054761,-151.0,0.00010954,2]
[400198443,1767192054792,-151.0,0.00010954,2]
[400198444,1767192054823,-290.31903463,0.00010954,2]
[400198445,1767192054854,-151.0,0.00010954,2]
[400198446,1767192054887,-151.0,0.00010954,2]
[400198447,1767192054919,-151.0,0.00010954,2]
[400198448,1767192054950,-151.0,0.00010954,2]
[400198449,1767192054986,-151.0,0.00010954,2]
[400198450,1767192055019,-151.0,0.00010954,2]
[400198451,1767192055055,-151.0,0.00010954,2]
[400198452,1767192055088,-151.0,0.00010954,2]
[400198453,1767192055125,-151.0,0.00010954,2]
[400198454,1767192055159,-242.32257062,0.00010954,2]
[400198455,1767192055586,500.0,0.00010953,2]
[400198456,1767192056778,-5000.0,0.00010954,2]
[400198457,1767192058417,-5000.0,0.00010954,2]
[400198458,1767192059739,1168.53937426,0.00010954,2]
[400198459,1767192059770,3831.46062574,0.00010954,2]
[400198460,1767192060967,-5000.0,0.00010954,2]
[400198462,1767192062094,-5000.0,0.00010954,2]
[400198463,1767192064271,-5000.0,0.00010954,2]
[400198464,1767192065814,-5000.0,0.00010954,2]
[400198465,1767192067093,-5000.0,0.00010954,2]
[400198466,1767192068104,-5000.0,0.00010954,2]
[400198469,1767192069214,-5000.0,0.00010954,2]
[400198471,1767192070185,-5000.0,0.00010954,2]
[400198473,1767192073688,-5000.0,0.00010954,2]
[400198475,1767192076753,-5000.0,0.00010954,2]
[400198482,1767192078306,-5000.0,0.00010954,2]
[400198484,1767192079737,-5000.0,0.00010954,2]
[400198485,1767192080785,-5000.0,0.00010954,2]
[400198486,1767192081979,-5000.0,0.00010954,2]
[400198487,1767192082774,5000.0,0.00010954,2]
[400198491,1767192095254,-5000.0,0.00010954,2]
[400198492,1767192097066,-5000.0,0.00010954,2]
[400198493,1767192098365,-5000.0,0.00010954,2]
[400198494,1767192099437,-5000.0,0.00010954,2]
[400198495,1767192100687,-5000.0,0.00010954,2]
[400198496,1767192101855,-5000.0,0.00010954,2]
[400198497,1767192103488,172.159,0.00010735,2]
[400198498,1767192103735,-5000.0,0.00010954,2]
[400198499,1767192104978,-5000.0,0.00010954,2]
[400198500,1767192105945,-5000.0,0.00010954,2]
[400198501,1767192107152,-5000.0,0.00010954,2]
[400198502,1767192108568,-5000.0,0.00010954,2]
[400198504,1767192109871,-5000.0,0.00010954,2]
[400198505,1767192111258,-5000.0,0.00010954,2]
[400198506,1767192113124,-5000.0,0.00010954,2]
[400198507,1767192121008,-5000.0,0.00010954,2]
[400198509,1767192122322,300.0,0.00010953,2]
[400198512,1767192123251,300.0,0.00010953,2]
[400198513,1767192123426,-5000.0,0.00010954,2]
[400198514,1767192124933,-5000.0,0.00010954,2]
[400198515,1767192126210,-5000.0,0.00010954,2]
[400198516,1767192127509,-5000.0,0.00010954,2]
[400198519,1767192129668,-5000.0,0.00010954,2]
[400198521,1767192132611,-5000.0,0.00010954,2]
[400198522,1767192133945,-5000.0,0.00010954,2]
[400198523,1767192139761,-5000.0,0.00010954,2]
[400198527,1767192140852,-5000.0,0.00010954,2]
[400198528,1767192143296,-5000.0,0.00010954,2]
[400198531,1767192144523,-5000.0,0.00010954,2]
[400198533,1767192145629,-5000.0,0.00010954,2]
[400198536,1767192147665,-5000.0,0.00010954,2]
[400198537,1767192152699,-5000.0,0.00010954,2]
[400198540,1767192182653,300.0,0.00010953,2]
[400198541,1767192187002,669.2374728,0.00010854,2]
[400198544,1767192193818,1200.0,0.00010953,2]
[400198546,1767192219582,5000.0,0.00010954,2]
[400198548,1767192239174,500.0,0.00010953,2]
[400198549,1767192239213,500.0,0.00010953,2]
[400198550,1767192239251,500.0,0.00010953,2]
[400198551,1767192239287,500.0,0.00010953,2]
[400198552,1767192239322,58.6135272,0.00010953,2]
[400198553,1767192239353,441.3864728,0.00010953,2]
[400198554,1767192239391,500.0,0.00010953,2]
[400198555,1767192239427,500.0,0.00010953,2]
[400198556,1767192239465,500.0,0.00010953,2]
[400198557,1767192239503,500.0,0.00010953,2]
[400198558,1767192239536,500.0,0.00010953,2]
[400198559,1767192239573,500.0,0.00010953,2]
[400198560,1767192239605,500.0,0.00010953,2]
[400198561,1767192239646,500.0,0.00010953,2]
[400198562,1767192239678,500.0,0.00010953,2]
[400198563,1767192239724,500.0,0.00010953,2]
[400198564,1767192239756,500.0,0.00010953,2]
[400198565,1767192239788,489.22960602,0.00010953,2]
[400198566,1767192239819,500.0,0.00010953,2]
[400198567,1767192239864,500.0,0.00010953,2]
[400198568,1767192239896,500.0,0.00010953,2]
[400198569,1767192239942,500.0,0.00010953,2]
[400198570,1767192239982,500.0,0.00010953,2]
[400198571,1767192240017,500.0,0.00010953,2]
[400198572,1767192240051,500.0,0.00010953,2]
[400198573,1767192240108,69.39392118,0.00010953,2]
[400198574,1767192240140,430.60607882,0.00010953,2]
[400198575,1767192240176,500.0,0.00010953,2]
[400198576,1767192240217,500.0,0.00010953,2]
[400198577,1767192243207,300.0,0.00010953,2]
[400198579,1767192252003,500.0,0.00010953,2]
[400198583,1767192257894,304.99177164,0.00010953,2]
[400198584,1767192259051,500.0,0.00010953,2]
[400198585,1767192259108,500.0,0.00010953,2]
[400198586,1767192259145,500.0,0.00010953,2]
[400198587,1767192259186,500.0,0.00010953,2]
[400198588,1767192259221,500.0,0.00010953,2]
[400198589,1767192259257,500.0,0.00010953,2]
[400198590,1767192259297,500.0,0.00010953,2]
[400198591,1767192259344,500.0,0.00010953,2]
[400198592,1767192259380,500.0,0.00010953,2]
[400198593,1767192259414,500.0,0.00010953,2]
[400198594,1767192259449,500.0,0.00010953,2]
[400198595,1767192259488,500.0,0.00010953,2]
[400198596,1767192259522,500.0,0.00010953,2]
[400198597,1767192259714,500.0,0.00010953,2]
[400198598,1767192259746,500.0,0.00010953,2]
[400198599,1767192259788,500.0,0.00010953,2]
[400198600,1767192259825,500.0,0.00010953,2]
[400198601,1767192259859,395.01822836,0.00010953,2]
[400198602,1767192259887,104.98177164,0.00010953,2]
[400198603,1767192259926,500.0,0.00010953,2]
[400198604,1767192259964,500.0,0.00010953,2]
[400198605,1767192260001,500.0,0.00010953,2]
[400198606,1767192260034,500.0,0.00010953,2]
[400198607,1767192260070,500.0,0.00010953,2]
[400198608,1767192260104,500.0,0.00010953,2]
[400198609,1767192260137,500.0,0.00010953,2]
[400198610,1767192260171,500.0,0.00010953,2]
[400198611,1767192260204,500.0,0.00010953,2]
[400198612,1767192260238,500.0,0.00010953,2]
[400198613,1767192260308,500.0,0.00010953,2]
[400198614,1767192260347,500.0,0.00010953,2]
[400198615,1767192260386,500.0,0.00010953,2]
[400198616,1767192260426,500.0,0.00010953,2]
[400198617,1767192260461,500.0,0.00010953,2]
[400198618,1767192260495,526.71430773,0.00010953,2]
[400198619,1767192260533,500.0,0.00010953,2]
[400198620,1767192288507,500.0,0.00010953,2]
[400198621,1767192288546,500.0,0.00010953,2]
[400198622,1767192288586,368.31392063,0.00010953,2]
[400198623,1767192288613,131.68607937,0.00010953,2]
[400198624,1767192288649,500.0,0.00010953,2]
[400198625,1767192288683,500.0,0.00010953,2]
[400198626,1767192288716,550.0,0.00010953,2]
[400198627,1767192288904,500.0,0.00010953,2]
[400198628,1767192288946,500.0,0.00010953,2]
[400198629,1767192298217,500.0,0.00010953,2]
[400198630,1767192298253,500.0,0.00010953,2]
[400198631,1767192298289,500.0,0.00010953,2]
[400198632,1767192298327,500.0,0.00010953,2]
[400198633,1767192298366,500.0,0.00010953,2]
[400198634,1767192298402,500.0,0.00010953,2]
[400198635,1767192298441,500.0,0.00010953,2]
[400198636,1767192298473,500.0,0.00010953,2]
[400198637,1767192298507,500.0,0.00010953,2]
[400198638,1767192298542,500.0,0.00010953,2]
[400198639,1767192298575,500.0,0.00010953,2]
[400198640,1767192298618,500.0,0.00010953,2]
[400198641,1767192298655,500.0,0.00010953,2]
[400198642,1767192298687,500.0,0.00010953,2]
[400198643,1767192298720,318.32392063,0.00010953,2]
[400198644,1767192298746,181.67607937,0.00010953,2]
[400198645,1767192298782,500.0,0.00010953,2]
[400198646,1767192298814,500.0,0.00010953,2]
[400198647,1767192298846,500.0,0.00010953,2]
[400198648,1767192298880,500.0,0.00010953,2]
[400198649,1767192298912,500.0,0.00010953,2]
[400198650,1767192298945,500.0,0.00010953,2]
[400198651,1767192298982,500.0,0.00010953,2]
[400198652,1767192299017,500.0,0.00010953,2]
[400198653,1767192299051,500.0,0.00010953,2]
[400198654,1767192299090,500.0,0.00010953,2]
[400198655,1767192299125,500.0,0.00010953,2]
[400198656,1767192299164,500.0,0.00010953,2]
[400198657,1767192299196,232.4114021,0.00010953,2]
[400198658,1767192299230,500.0,0.00010953,2]
[400198659,1767192299286,500.0,0.00010953,2]
[400198660,1767192299322,500.0,0.00010953,2]
[400198663,1767192301397,300.0,0.00010953,2]
[400198664,1767192302008,300.0,0.00010953,2]
[400198665,1767192302138,300.0,0.00010953,2]
[400198667,1767192307309,300.0,0.00010953,2]
[400198668,1767192308754,885.92251853,0.00010953,2]
[400198669,1767192308783,314.07748147,0.00010953,2]
[400198673,1767192318303,151.0,0.00010954,2]
[400198675,1767192323325,500.0,0.00010953,2]
[400198676,1767192323378,500.0,0.00010953,2]
[400198678,1767192355148,-17004.296736,0.00010954,2]
[400198680,1767192362399,300.0,0.00010953,2]
[400198684,1767192374718,4614.1361455,0.00010724,2]
[400198686,1767192397115,-16051.785399,0.00010954,2]
[400198688,1767192419558,-377.68601388,0.00010954,2]
[400198689,1767192421095,-300.0,0.00010954,2]
[400198691,1767192422387,300.0,0.00010953,2]
[400198700,1767192437549,6302.0343995,0.00010161,2]
[400198702,1767192439113,-160361.722953,0.00010954,2]
[400198705,1767192482357,300.0,0.00010953,2]
[400198708,1767192493075,1200.0,0.00010953,2]
[400198710,1767192504559,500.0,0.00010953,2]
[400198711,1767192504616,500.0,0.00010953,2]
[400198712,1767192504679,500.0,0.00010953,2]
[400198713,1767192504747,397.9756005,0.00010953,2]
[400198714,1767192504777,102.0243995,0.00010953,2]
[400198715,1767192504829,607.67143077,0.00010953,2]
[400198718,1767192515593,500.0,0.00010953,2]
[400198719,1767192515643,500.0,0.00010953,2]
[400198720,1767192515696,398.9229606,0.00010953,2]
[400198723,1767192519765,213.49424015,0.00010953,2]
[400198732,1767192524302,7677.89696898,0.00010854,2]
[400198734,1767192524332,10000.01,0.00010854,2]
[400198736,1767192524364,10000.01,0.00010854,2]
[400198737,1767192524397,10000.01,0.00010854,2]
[400198738,1767192524431,10000.01,0.00010854,2]
[400198739,1767192524462,10000.01,0.00010854,2]
[400198740,1767192524494,10000.01,0.00010854,2]
[400198741,1767192524527,10000.01,0.00010854,2]
[400198742,1767192524559,10000.01,0.00010854,2]
[400198743,1767192524593,10000.01,0.00010854,2]
[400198745,1767192527987,-187.23850627,0.00010854,2]
[400198746,1767192532901,-317.64684985,0.00010854,2]
[400198747,1767192534346,-544.06,0.00010854,2]
[400198748,1767192536373,-231.69814697,0.00010854,2]
[400198749,1767192543582,-189.25028351,0.00010745,2]
[400198750,1767192545235,-4810.74971649,0.00010745,2]
[400198751,1767192545269,-78.51056702,0.00010853,2]
[400198752,1767192545567,-221.48943298,0.00010853,2]
[400198753,1767192545754,-302.27713325,0.00010854,2]
[400198754,1767192549186,-503.11240054,0.00010854,2]
[400198756,1767192554375,-218.71,0.00010854,2]
[400198758,1767192556385,3327.05058126,0.00010854,2]
[400198759,1767192556858,-161.02517434,0.00010854,2]
[400198761,1767192558894,-222.83310953,0.00010854,2]
[400198762,1767192564152,5000.0,0.00010854,2]
[400198763,1767192564660,-625.42610291,0.00010854,2]
[400198769,1767192567707,-192.71981792,0.00010854,2]
[400198770,1767192568612,155.0,7.9e-07,2]
[400198772,1767192569703,155.0,7.9e-07,2]
[400198773,1767192570745,155.0,7.9e-07,2]
[400198775,1767192574583,-509.77538471,0.00010854,2]
[400198777,1767192575825,764.98055278,0.00010852,2]
[400198778,1767192575882,10000.01,0.00010852,2]
[400198779,1767192575936,10000.01,0.00010852,2]
[400198780,1767192575990,10000.01,0.00010852,2]
[400198781,1767192576045,10000.01,0.00010852,2]
[400198782,1767192576098,10000.01,0.00010852,2]
[400198783,1767192576154,10000.01,0.00010852,2]
[400198784,1767192576210,10000.01,0.00010852,2]
[400198785,1767192576263,10000.01,0.00010852,2]
[400198786,1767192576321,10000.01,0.00010852,2]
[400198787,1767192576364,-374.93897584,0.00010852,2]
[400198790,1767192582897,-227.09273059,0.00010743,2]
[400198791,1767192584331,-205.95634003,0.00010743,2]
[400198794,1767192589325,-452.46709458,0.00010636,2]
[400198796,1767192590706,-4547.53290542,0.00010636,2]
[400198797,1767192590766,-299.81303037,0.00010743,2]
[400198798,1767192591836,-312.86163821,0.00010852,2]
[400198801,1767192599951,-2732.58541258,0.00010852,2]
[400198802,1767192600118,-10000.01,0.00010852,2]
[400198803,1767192600353,-10000.01,0.00010852,2]
[400198804,1767192600572,-10000.01,0.00010852,2]
[400198805,1767192600753,-10000.01,0.00010852,2]
[400198807,1767192600954,-10000.01,0.00010852,2]
[400198808,1767192601186,-10000.01,0.00010852,2]
[400198812,1767192601578,-10000.01,0.00010852,2]
[400198813,1767192601818,-10000.01,0.00010852,2]
[400198818,1767192609255,-300.0,0.00010851,2]
[400198819,1767192609343,-300.0,0.00010851,2]
[400198820,1767192609417,-1200.0,0.00010851,2]
[400198821,1767192609933,-6400.01,0.00010852,2]
[400198822,1767192610089,-10000.01,0.00010852,2]
[400198823,1767192610148,-10000.01,0.00010852,2]
[400198824,1767192610215,-10000.01,0.00010852,2]
[400198825,1767192610323,-10000.01,0.00010852,2]
[400198826,1767192610402,-10000.01,0.00010852,2]
[400198827,1767192610644,-10000.01,0.00010852,2]
[400198828,1767192610872,-10000.01,0.00010852,2]
[400198829,1767192611122,-10000.01,0.00010852,2]
[400198834,1767192627779,-10000.01,0.00010852,2]
[400198835,1767192628119,-10000.01,0.00010852,2]
[400198836,1767192628356,-10000.01,0.00010852,2]
[400198837,1767192628890,-10000.01,0.00010852,2]
[400198838,1767192629062,2032.29318283,0.00010802,2]
[400198882,1767192631636,-62362.10829195,0.00010852,2]
[400198884,1767192631648,-1410.72508389,0.00010852,2]
[400198886,1767192631659,-374.14549263,0.00010852,2]
[400198888,1767192631671,-600.0,0.00010852,2]
[400198891,1767192631699,-841.6034007,0.00010852,2]
[400198899,1767192633643,-7967.71681717,0.00010852,2]
[400198900,1767192633931,-10000.01,0.00010852,2]
[400198901,1767192634130,-10000.01,0.00010852,2]